bitfinex/quotes_ETHUSD_20260121
["timestamp","ask_amount","ask_price","bid_price","bid_amount"]
[1768997939895,0.90360886,2919.7,2917.4,3.4277096]
[1768997940595,0.90360886,2919.7,2917.5,0.03427592]
[1768997940816,0.90360886,2919.7,2917.3,6.85563824]
[1768997940971,0.90360886,2919.7,2917.4,0.03427034]
[1768997941298,0.90360886,2919.5,2917.4,0.03427034]
[1768997941602,0.90360886,2919.5,2916.8,0.91194346]
[1768997941603,0.90360886,2919.2,2917.5,3.4618263]
[1768997941755,0.90360886,2919.2,2917.5,6.88941841]
[1768997942110,0.90360886,2919.2,2917.5,3.42755038]
[1768997942328,0.90360886,2919.2,2916.5,3.42868391]
[1768997942587,0.90360886,2919.2,2915.8,0.128]
[1768997942588,0.90360886,2919.0,2916.6,0.03428649]
[1768997942791,0.90360886,2919.0,2916.0,0.03429355]
[1768997943097,0.90360886,2918.9,2916.4,3.42880647]
[1768997943399,0.90360886,2918.5,2915.9,3.42936756]
[1768997943597,0.90360886,2918.5,2915.4,4.34197716]
[1768997943598,0.90360886,2918.2,2915.4,0.91194346]
[1768997943896,0.90360886,2918.2,2915.6,0.91194346]
[1768997944093,0.90360886,2918.2,2915.7,0.03429708]
[1768997944298,0.90360886,2917.9,2915.7,0.03429708]
[1768997944995,6.853305,2918.3,2915.5,0.03429943]
[1768997944996,0.90360886,2917.7,2915.5,0.03429943]
[1768997945295,1.7418318,2917.8,2914.5,0.91194346]
[1768997945296,0.03429708,2915.6,2914.5,0.91194346]
[1768997945460,0.90360886,2916.9,2915.4,3.43002612]
[1768997945660,0.90360886,2916.9,2914.7,0.91194346]
[1768997945855,0.90360886,2916.9,2914.5,3.43109822]
[1768997945856,0.90360886,2916.8,2914.5,3.43109822]
[1768997946061,0.90360886,2916.8,2914.1,0.91194346]
[1768997946260,10.28503058,2916.9,2914.2,3.43143263]
[1768997946261,0.90360886,2916.6,2914.2,3.43143263]
[1768997946515,0.90360886,2916.6,2914.2,3.43144214]
[1768997946793,0.90360886,2916.4,2914.3,0.03431355]
[1768997947001,0.90360886,2916.4,2914.5,3.43106085]
[1768997947157,0.90360886,2916.4,2914.5,0.0343112]
[1768997947362,0.90360886,2916.4,2914.3,0.03431355]
[1768997947694,0.90360886,2916.4,2913.7,0.002]
[1768997947695,0.90360886,2916.1,2914.1,3.43152006]
[1768997948012,0.90360886,2916.1,2914.2,0.03431473]
[1768997948303,0.90360886,2916.1,2913.7,0.03632062]
[1768997949576,0.90360886,2915.9,2913.7,0.03632062]
[1768997949779,0.90360886,2915.9,2913.8,6.86388906]
[1768997950094,0.90360886,2915.9,2913.9,0.03431826]
[1768997951711,0.90360886,2915.7,2913.9,3.43181168]
[1768997952403,0.90360886,2915.7,2913.9,6.86363844]
[1768997953100,0.90360886,2915.7,2914.0,0.03431708]
[1768997953482,0.90360886,2915.7,2913.7,0.002]
[1768997953803,0.90360886,2915.5,2913.7,0.002]
[1768997954006,0.90360886,2915.3,2913.7,0.002]
[1768997954608,0.90360886,2915.3,2914.1,0.002]
[1768997954802,0.90360886,2915.3,2913.7,0.002]
[1768997955882,0.90360886,2915.3,2913.9,0.002]
[1768997956111,0.95130587,2915.2,2913.9,0.002]
[1768997956285,1.38946387,2915.1,2913.9,0.002]
[1768997956488,0.95130587,2915.9,2913.9,0.002]
[1768997956688,0.9856053,2915.8,2913.9,0.02724485]
[1768997957103,0.9856053,2915.8,2914.0,0.03431708]
[1768997957603,0.9856053,2915.8,2914.1,6.86318244]
[1768997957799,0.9856053,2915.8,2914.0,3.43166404]
[1768997957990,0.95130587,2915.7,2914.0,3.65338981]
[1768997958173,0.03429943,2915.6,2914.0,6.86341676]
[1768997958610,0.9856053,2915.6,2914.1,0.03431591]
[1768997959009,0.9856053,2915.6,2914.0,6.86341676]
[1768997959204,0.9856053,2915.6,2914.0,3.43170777]
[1768997959443,0.9856053,2915.6,2914.0,3.46600309]
[1768997960575,0.9856053,2915.6,2913.9,3.43381807]
[1768997960576,0.95130587,2915.5,2913.9,0.002]
[1768997960865,0.95130587,2915.3,2913.9,0.002]
[1768997961020,0.9856053,2915.2,2913.9,0.002]
[1768997961223,3.42974772,2915.7,2914.0,3.43169656]
[1768997961224,0.03429943,2915.5,2914.0,3.43169656]
[1768997961455,0.03429943,2915.4,2914.1,0.02476902]
[1768997961618,0.03429943,2915.6,2914.0,0.02477097]
[1768997961819,0.03429943,2915.6,2914.0,3.45644602]
[1768997962020,0.03429943,2915.6,2914.1,3.43158734]
[1768997962850,0.9856053,2915.6,2914.1,3.43158734]
[1768997963361,0.9856053,2915.6,2914.1,3.46590325]
[1768997963663,0.9856053,2915.6,2914.1,0.03431591]
[1768997963877,0.9856053,2915.6,2914.1,3.46590606]
[1768997964936,0.9856053,2915.6,2914.1,6.89749728]
[1768997965135,0.03429943,2915.5,2914.1,6.86318137]
[1768997965365,0.03429943,2915.5,2914.2,0.03431473]
[1768997965733,0.95130587,2916.0,2914.3,6.86271144]
[1768997965938,0.03429943,2915.9,2914.4,0.03431237]
[1768997966443,0.95130587,2916.0,2914.4,0.96108492]
[1768997967141,0.03429943,2915.9,2914.4,0.96108492]
[1768997967759,0.03429943,2915.9,2914.5,7.78901307]
[1768997968032,0.03429943,2916.3,2914.6,0.03431002]
[1768997968244,0.9856053,2916.3,2914.6,0.03431002]
[1768997968643,0.03429943,2916.3,2914.6,0.96108257]
[1768997968844,0.9856053,2916.6,2914.7,0.92677255]
[1768997969049,0.9856053,2916.6,2914.8,0.03430767]
[1768997969740,0.001,2915.8,2914.8,0.03430767]
[1768997969943,0.001,2915.8,2914.9,3.43064942]
[1768997970165,0.001,2915.8,2915.0,0.03430531]
[1768997970471,0.03430531,2915.0,2914.5,3.43106295]
[1768997971264,0.03430531,2915.0,2914.5,3.43104096]
[1768997971459,0.03430531,2915.0,2914.5,3.43111169]
[1768997971852,0.03430531,2915.0,2914.4,3.43123798]
[1768997972037,0.03430531,2915.0,2914.4,6.89678834]
[1768997972241,0.001,2915.8,2914.4,7.78924852]
[1768997972668,0.001,2915.8,2914.5,0.92677255]
[1768997972971,0.001,2915.8,2914.6,0.96108257]
[1768997973778,0.95230587,2915.8,2914.4,3.46555035]
[1768997973945,0.03429943,2915.7,2914.4,3.46555035]
[1768997974144,0.03429943,2915.7,2914.4,6.89678834]
[1768997974352,0.03429943,2915.7,2913.9,3.43378441]
[1768997974353,0.9856053,2915.7,2913.9,3.43378441]
[1768997974677,0.9856053,2915.7,2914.0,0.96108963]
[1768997974873,0.9856053,2915.7,2914.3,3.43129654]
[1768997975054,0.9856053,2915.7,2914.4,0.03431237]
[1768997975252,0.9856053,2915.7,2914.4,3.46553563]
[1768997975453,0.001,2915.8,2914.4,6.89677362]
[1768997975655,0.001,2915.8,2914.4,3.43122326]
[1768997976055,0.95230587,2915.8,2914.4,3.46553563]
[1768997976258,0.03429943,2915.7,2914.4,3.46553563]
[1768997976840,0.03429943,2915.7,2914.4,0.03431237]
[1768997977079,0.9856053,2915.7,2914.4,3.46554785]
[1768997977242,0.9856053,2915.7,2913.9,3.43373916]
[1768997977243,0.9856053,2915.7,2913.9,0.002]
[1768997977445,0.9856053,2915.7,2913.9,0.03631826]
[1768997978083,0.95130587,2915.5,2913.9,0.03631826]
[1768997978394,0.95130587,2915.3,2913.9,3.46810377]
[1768997978557,0.95130587,2915.3,2913.9,6.89993053]
[1768997978763,0.9856053,2915.7,2914.0,0.92677255]
[1768997978968,3.46404877,2915.7,2914.0,0.92677255]
[1768997979178,0.95130587,2915.6,2913.9,3.43378551]
[1768997979500,3.46404877,2915.7,2914.0,0.03431708]
[1768997979501,0.95130587,2915.4,2914.0,0.03431708]
[1768997979965,0.03429943,2915.3,2914.1,3.43159122]
[1768997980161,0.9866053,2915.8,2914.2,0.96108728]
[1768997980365,0.03429943,2915.7,2914.2,0.96108728]
[1768997980585,0.001,2915.8,2914.2,0.96108728]
[1768997980800,0.03529943,2915.8,2914.2,0.96108728]
[1768997980975,0.001,2915.8,2914.2,0.96108728]
[1768997981176,0.03529943,2915.8,2914.2,0.96108728]
[1768997981376,0.001,2915.8,2914.2,0.96108728]
[1768997981588,0.001,2915.5,2914.2,0.96108728]
[1768997981964,0.001,2915.5,2914.3,6.86271144]
[1768997982166,0.001,2915.5,2914.4,0.96108492]
[1768997982566,3.42833187,2916.9,2914.4,0.96108492]
[1768997982567,0.95130587,2916.7,2914.8,0.92677255]
[1768997982802,0.05,2917.8,2915.0,0.92677255]
[1768997982803,0.95130587,2917.2,2915.0,0.92677255]
[1768997983010,0.95130587,2917.6,2915.3,4.68677491]
[1768997983300,0.95130587,2917.4,2915.4,0.92677255]
[1768997983522,0.95130587,2917.2,2914.8,0.96108022]
[1768997983797,0.95130587,2917.0,2914.8,0.96108022]
[1768997983965,0.9856053,2916.9,2914.9,10.29194826]
[1768997984167,0.9856053,2916.9,2915.0,0.96107786]
[1768997984382,0.95130587,2916.7,2914.6,3.43091069]
[1768997984597,0.95130587,2916.7,2914.5,0.92677255]
[1768997984598,0.95130587,2916.5,2914.7,3.46518346]
[1768997984896,0.95130587,2916.5,2914.1,3.43351772]
[1768997984897,0.95130587,2916.3,2914.6,0.03431002]
[1768997985203,0.95130587,2916.1,2914.7,3.4651071]
[1768997985499,0.95130587,2916.1,2914.7,3.46512818]
[1768997985696,0.92098212,2916.6,2914.7,3.46512818]
[1768997985996,0.03429943,2916.5,2914.8,3.43074192]
[1768997986202,0.92098212,2916.4,2914.9,0.03430649]
[1768997986372,0.47270476,2916.3,2914.9,0.03430649]
[1768997988178,0.03429943,2916.3,2914.9,0.03430649]
[1768997989386,0.03429943,2916.3,2915.0,0.03430531]
[1768997989596,0.03429943,2916.3,2915.0,0.9784035]
[1768997989800,0.92098212,2916.9,2915.0,0.9784035]
[1768997990109,3.46214409,2917.3,2915.1,6.8608281]
[1768997990410,1.35929474,2917.2,2915.3,0.94409819]
[1768997990593,0.03429943,2917.1,2915.4,0.03430061]
[1768997990911,0.03429943,2917.1,2915.4,0.9783988]
[1768997991470,1.35929474,2917.2,2915.4,0.9783988]
[1768997991692,0.03429943,2917.1,2915.4,0.9783988]
[1768997992297,0.03429943,2917.1,2915.5,6.8598868]
[1768997992499,0.03429943,2917.1,2915.6,0.03429825]
[1768997993389,0.92098212,2917.2,2915.6,0.97839644]
[1768997993725,3.4283644,2917.7,2915.6,0.97839644]
[1768997993726,0.001,2917.7,2915.6,0.97839644]
[1768997993876,0.001,2917.7,2915.7,0.94409819]
[1768997994210,0.001,2917.7,2915.9,0.94409819]
[1768997994394,0.001,2917.7,2915.8,0.0342959]
[1768997994395,0.001,2917.7,2916.1,0.94409819]
[1768997994571,0.92098212,2917.6,2915.9,3.42946102]
[1768997994771,0.92098212,2917.4,2915.9,3.46375574]
[1768997994975,0.001,2916.9,2915.9,3.46375574]
[1768997995204,0.001,2916.9,2915.9,6.89322863]
[1768997995409,0.001,2916.9,2915.9,6.85893391]
[1768997995915,0.001,2917.7,2916.1,0.94409819]
[1768997996271,0.001,2917.7,2916.0,0.03429355]
[1768997996272,0.92098212,2917.6,2916.0,0.03429355]
[1768997996471,0.03529943,2917.7,2915.5,0.94409819]
[1768997996472,0.92098212,2917.4,2915.7,3.42965281]
[1768997996712,0.92098212,2917.2,2915.8,0.0342959]
[1768997996891,0.03429943,2917.1,2915.8,0.0342959]
[1768997997087,0.03429943,2917.1,2915.9,3.42944755]
[1768997997385,0.00929943,2917.0,2915.8,0.0342959]
[1768997997580,0.00929943,2917.1,2915.9,0.03429472]
[1768997997776,0.00929943,2917.1,2915.6,0.03429825]
[1768997997777,0.90385737,2917.0,2915.6,0.03429825]
[1768997997994,0.90385737,2916.8,2915.0,0.03630531]
[1768997998284,0.90385737,2916.6,2915.1,0.03430414]
[1768997998596,0.9131568,2916.6,2915.3,0.03430178]
[1768997998782,0.00929943,2916.5,2915.2,0.036302]
[1768997999108,0.9131568,2916.5,2915.2,0.036302]
[1768998001309,0.90385737,2917.3,2915.3,0.90181684]
[1768998001511,0.9131568,2917.2,2915.5,0.90181684]
[1768998001676,0.9131568,2917.2,2915.5,0.03429943]
[1768998001878,0.001,2917.7,2915.5,0.03429943]
[1768998001879,0.001,2917.7,2915.6,0.90181684]
[1768998002079,0.001,2917.7,2915.8,0.90181684]
[1768998002282,0.001,2917.7,2916.0,0.90181684]
[1768998002511,0.001,2917.7,2916.2,0.90181684]
[1768998002714,0.90485737,2917.7,2915.9,0.90181684]
[1768998002913,0.9131568,2917.6,2916.2,3.42910863]
[1768998003211,0.9131568,2917.6,2915.9,0.90181684]
[1768998003212,0.9131568,2917.5,2915.9,0.90181684]
[1768998003512,0.001,2917.7,2916.2,6.85815498]
[1768998003726,0.001,2917.7,2916.3,0.93610686]
[1768998003897,0.001,2917.7,2916.4,0.90181684]
[1768998004232,0.90385737,2918.9,2916.6,0.90181684]
[1768998004735,0.00929943,2919.3,2916.9,0.90181684]
[1768998005216,0.9131568,2919.3,2916.9,0.90181684]
[1768998005418,4.33865256,2919.3,2916.9,0.90181684]
[1768998005717,0.9131568,2919.3,2916.9,0.90181684]
[1768998005922,0.9131568,2919.3,2917.1,0.90181684]
[1768998006718,0.90385737,2919.0,2917.2,3.4279446]
[1768998006919,0.00929943,2918.9,2917.2,3.4279446]
[1768998007221,0.00929943,2918.9,2917.1,4.32979122]
[1768998007222,0.90385737,2918.9,2917.1,6.85612043]
[1768998007382,0.00929943,2918.8,2917.2,0.90181684]
[1768998007717,0.90385737,2919.2,2917.2,0.90181684]
[1768998007907,0.00929943,2919.1,2917.2,0.90181684]
[1768998008220,4.68777491,2919.8,2917.2,0.90181684]
[1768998008221,0.90385737,2919.7,2917.2,0.90181684]
[1768998008520,0.00929943,2919.6,2917.2,0.90181684]
[1768998008697,0.90385737,2919.5,2917.4,0.69595845]
[1768998009038,0.90385737,2919.3,2917.4,0.90181684]
[1768998009235,0.43382835,2919.4,2917.4,0.90181684]
[1768998009236,0.00929943,2919.4,2917.4,0.90181684]
[1768998009434,0.00929943,2919.7,2917.4,0.90181684]
[1768998009587,0.9131568,2919.7,2917.4,0.90181684]
[1768998010299,0.9131568,2919.7,2917.4,0.93609393]
[1768998010514,0.90385737,2919.5,2917.4,0.93609393]
[1768998010720,0.00929943,2919.4,2917.5,6.85518422]
[1768998010936,0.9131568,2919.4,2917.5,6.85518422]
[1768998011112,0.9131568,2919.4,2917.6,0.90181684]
[1768998011318,0.00929943,2919.4,2917.6,0.90181684]
[1768998011522,0.90385737,2919.7,2917.6,0.90181684]
[1768998011717,0.001,2919.8,2917.6,0.90181684]
[1768998012041,0.00929943,2919.7,2917.6,0.90181684]
[1768998012333,0.001,2919.8,2917.6,0.93609158]
[1768998012502,0.001,2919.8,2918.1,0.90181684]
[1768998012697,0.001,2919.8,2918.5,0.90181684]
[1768998013590,0.001,2919.8,2918.3,3.42662521]
[1768998013791,0.001,2919.8,2918.2,3.42667815]
[1768998013792,0.001,2919.8,2918.2,3.42674523]
[1768998014121,0.001,2919.8,2918.3,3.42658306]
[1768998014296,0.001,2919.8,2918.3,6.85323556]
[1768998014922,0.001,2919.8,2918.1,7.75559154]
[1768998015129,0.001,2919.8,2918.2,0.03426769]
[1768998015438,0.9722621,2919.8,2918.2,0.03426769]
[1768998015639,0.9712621,2919.6,2917.7,0.03427357]
[1768998015940,0.001,2919.8,2917.7,0.03427357]
[1768998015941,0.9712621,2919.4,2917.8,0.03427239]
[1768998016233,0.00929943,2919.3,2917.8,0.03427239]
[1768998016430,0.00929943,2919.3,2917.5,3.42752095]
[1768998016625,0.00929943,2919.3,2917.7,3.42727767]
[1768998016818,0.00929943,2919.3,2917.8,0.03427239]
[1768998017041,0.00929943,2919.3,2916.7,3.42849812]
[1768998017042,0.9712621,2919.2,2916.6,0.93753112]
[1768998017216,0.98056153,2919.1,2917.3,3.42779006]
[1768998017419,0.98056153,2919.1,2917.5,3.42757902]
[1768998017647,0.98056153,2919.1,2917.6,0.03427474]
[1768998017939,0.98056153,2919.1,2917.1,3.42799464]
[1768998018150,0.98056153,2919.1,2917.2,3.46216136]
[1768998018363,0.9712621,2918.9,2917.2,3.46216136]
[1768998018502,0.00929943,2918.8,2917.7,3.42735309]
[1768998018703,0.9712621,2918.9,2917.8,0.03427239]
[1768998019004,0.00929943,2919.7,2917.9,0.03427122]
[1768998019005,0.9712621,2919.5,2917.9,0.03427122]
[1768998019250,0.001,2919.8,2917.9,10.31563729]
[1768998019425,0.01029943,2919.8,2917.9,7.79177495]
[1768998019623,0.01029943,2919.8,2917.9,11.21889719]
[1768998019836,0.001,2919.8,2918.0,0.93753112]
[1768998020005,0.001,2919.8,2918.1,0.97179999]
[1768998020406,0.001,2919.8,2918.1,0.03426887]
[1768998020407,0.9722621,2919.8,2918.1,0.03426887]
[1768998020601,0.00929943,2919.7,2918.1,0.03426887]
[1768998020827,0.001,2919.6,2918.1,0.97179999]
[1768998021029,0.001,2919.6,2918.2,6.85353984]
[1768998021201,0.001,2919.6,2918.3,0.03426652]
[1768998021609,0.001,2919.6,2918.3,0.97179764]
[1768998021913,0.001,2919.6,2918.5,0.93753112]
[1768998022104,0.001,2919.6,2918.6,0.034263]
[1768998022945,0.001,2919.6,2918.1,3.42685266]
[1768998023158,0.001,2919.6,2918.5,3.42632403]
[1768998023355,0.001,2919.6,2918.0,3.42697626]
[1768998023356,0.001,2919.6,2918.6,0.034263]
[1768998023682,0.001,2919.6,2918.7,0.03426182]
[1768998023950,0.001,2919.6,2918.7,6.88658107]
[1768998024155,0.001,2919.6,2918.7,6.85231925]
[1768998025058,0.001,2919.6,2918.4,11.21708601]
[1768998025250,0.001,2919.6,2918.5,0.03426417]
[1768998025851,0.001,2919.6,2918.5,0.97179529]
[1768998026756,0.001,2920.6,2918.6,0.93753112]
[1768998026931,0.001,2920.6,2918.8,0.93753112]
[1768998027269,0.001,2920.6,2919.2,0.93753112]
[1768998027475,0.001,2920.6,2919.3,0.9717859]
[1768998029032,0.9722621,2920.6,2919.3,0.03425478]
[1768998029237,0.9722621,2920.6,2919.4,3.45955289]
[1768998029437,0.9722621,2920.6,2919.4,6.88491426]
[1768998029438,0.001,2920.6,2919.4,6.88491426]
[1768998029670,0.001,2920.6,2919.3,3.42547823]
[1768998029869,0.001,2920.6,2919.4,0.03425361]
[1768998030167,0.001,2920.6,2919.1,0.03425713]
[1768998030347,0.001,2920.6,2919.3,3.42538719]
[1768998030556,0.001,2920.6,2919.4,0.0342536]
[1768998030762,0.9712621,2920.5,2919.1,0.03425713]
[1768998030928,0.9712621,2920.5,2919.1,3.42560467]
[1768998031135,0.9712621,2920.5,2919.2,3.45984507]
[1768998031540,0.001,2920.6,2919.2,3.45984507]
[1768998031541,0.001,2920.6,2919.3,0.93753112]
[1768998031750,0.001,2920.6,2919.4,0.03425361]
[1768998033147,0.001,2920.6,2919.5,10.27573212]
[1768998033351,0.9712621,2921.5,2919.6,0.97178238]
[1768998033551,0.9712621,2922.2,2919.6,0.97178238]
[1768998033751,0.8032621,2922.0,2919.7,0.93753112]
[1768998033956,0.98056153,2921.9,2919.9,0.93753112]
[1768998034163,0.98056153,2921.9,2920.0,0.03424657]
[1768998034450,0.98056153,2921.9,2919.4,3.42533315]
[1768998034451,1.0992621,2921.8,2919.4,3.42533315]
[1768998034786,0.9712621,2921.6,2919.4,3.42533315]
[1768998035074,0.9712621,2921.4,2919.2,3.42558647]
[1768998035233,0.9712621,2921.0,2919.3,0.03425478]
[1768998035439,0.9712621,2920.8,2919.0,6.85166152]
[1768998035669,0.00929943,2920.7,2919.0,6.85166152]
[1768998035976,0.9712621,2920.8,2919.0,10.27749228]
[1768998036267,0.9712621,2921.2,2919.1,0.93753112]
[1768998036467,3.42315832,2921.3,2918.9,3.42590199]
[1768998036468,0.9712621,2921.0,2918.9,3.42590199]
[1768998036766,0.9712621,2920.8,2919.0,0.03425615]
[1768998037066,0.43944204,2921.1,2918.8,3.42598814]
[1768998037067,0.9712621,2920.6,2918.8,3.42598814]
[1768998037270,0.9712621,2920.4,2918.7,3.42618288]
[1768998037434,0.00929943,2920.5,2918.9,0.03425948]
[1768998037435,0.9712621,2920.3,2918.9,0.03425948]
[1768998037637,0.9712621,2920.3,2918.7,0.03426182]
[1768998038739,3.42381235,2920.8,2918.7,0.03426182]
[1768998038740,0.43944204,2921.1,2918.7,0.97179294]
[1768998038939,0.9712621,2921.4,2918.7,0.97179294]
[1768998039139,0.9712621,2921.3,2918.7,0.97179294]
[1768998039471,0.9712621,2921.3,2918.9,0.93753112]
[1768998039658,1.44101442,2921.7,2919.1,0.93753112]
[1768998039972,1.44101442,2921.7,2919.3,0.93753112]
[1768998039973,0.9712621,2921.6,2919.3,0.93753112]
[1768998040175,0.9712621,2921.6,2919.5,0.93753112]
[1768998040473,0.9712621,2921.6,2919.7,0.93753112]
[1768998040672,0.9712621,2921.6,2919.8,0.97178003]
[1768998040847,0.9712621,2921.6,2919.9,0.03424593]
[1768998041175,0.9712621,2921.6,2919.5,0.93753112]
[1768998041344,0.9712621,2921.6,2919.8,7.78731534]
[1768998041547,0.9712621,2921.6,2919.9,0.03424637]
[1768998041745,0.9712621,2921.5,2919.9,0.03424637]
[1768998041996,0.9712621,2921.5,2918.0,1.7602376]
[1768998041997,3.42279551,2921.6,2919.4,0.03425223]
[1768998041998,0.9712621,2921.2,2919.4,0.03425223]
[1768998042143,0.9712621,2921.2,2919.3,3.4254382]
[1768998042468,0.9712621,2921.2,2919.4,3.45961174]
[1768998042701,0.9712621,2921.2,2919.4,0.03425361]
[1768998043143,0.9712621,2921.2,2919.4,3.45951616]
[1768998043343,4.39463,2921.1,2919.4,0.03425361]
[1768998043574,0.9712621,2921.0,2919.5,0.03425243]
[1768998043775,0.78179979,2920.9,2919.5,0.03425243]
[1768998044552,1.75306189,2920.9,2919.5,0.03425243]
[1768998045495,1.75306189,2920.9,2919.6,0.002]
[1768998045643,0.9712621,2920.9,2919.6,0.002]
[1768998045943,4.39487982,2920.9,2919.6,0.002]
[1768998046145,0.9712621,2920.9,2919.6,0.002]
[1768998047752,4.3948957,2920.9,2919.6,0.002]
[1768998049149,0.9712621,2920.9,2919.6,0.002]
[1768998049482,0.98114498,2920.5,2919.4,0.002]
[1768998049647,0.43948026,2920.8,2919.4,0.002]
[1768998049648,1.01539741,2920.8,2919.4,0.002]
[1768998049846,0.98114498,2920.7,2919.4,0.002]
[1768998050047,0.03425243,2920.6,2919.4,0.002]
[1768998050340,0.47816493,2920.6,2919.4,0.002]
[1768998050648,0.98114498,2920.7,2919.4,0.03625361]
[1768998050847,1.01539741,2920.7,2919.4,0.03625361]
[1768998051243,4.43867116,2921.2,2919.5,0.96159642]
[1768998051450,1.01539741,2921.2,2919.6,3.45934809]
[1768998051766,0.98114498,2921.1,2919.6,0.03425126]
[1768998051973,6.88077245,2921.2,2919.4,0.002]
[1768998051974,0.03425126,2919.6,2919.4,0.002]
[1768998053503,0.03425126,2919.6,2918.7,0.96159642]
[1768998053682,0.03425126,2919.6,2918.2,0.002]
[1768998053683,0.03425126,2919.6,2918.3,0.96159642]
[1768998054183,0.03425126,2919.6,2918.4,0.03426535]
[1768998054403,0.03425126,2919.6,2918.3,0.99586177]
[1768998054969,0.98114498,2919.5,2918.3,0.03426535]
[1768998055179,3.45940499,2919.6,2917.2,3.42788336]
[1768998055180,0.98114498,2918.8,2917.2,3.42788336]
[1768998055495,0.98114498,2918.8,2917.1,4.38954256]
[1768998056185,0.98114498,2918.8,2916.8,0.002]
[1768998056186,0.98114498,2918.7,2916.8,0.002]
[1768998056486,0.98114498,2918.5,2916.8,0.002]
[1768998056884,0.78334234,2918.6,2916.5,0.002]
[1768998056885,0.98114498,2918.2,2916.5,0.002]
[1768998057557,0.98125517,2918.0,2916.5,0.002]
[1768998059375,0.98125517,2917.6,2915.7,3.42962503]
[1768998059788,0.98125517,2917.6,2915.8,0.97873234]
[1768998060087,7.83620475,2917.6,2915.9,0.03429472]
[1768998060259,7.83620475,2917.6,2915.8,1.01302824]
[1768998060454,0.98125517,2917.5,2915.8,1.01302824]
[1768998060666,0.98125517,2918.0,2915.8,1.01302824]
[1768998060993,0.44081575,2917.9,2916.0,0.97873234]
[1768998061306,0.44081575,2917.9,2916.2,0.97873234]
[1768998061307,1.42207092,2917.9,2916.2,0.97873234]
[1768998061468,1.42207092,2917.9,2916.3,0.03429002]
[1768998062002,0.98125517,2917.8,2916.3,0.03429002]
[1768998062204,0.98125517,2917.6,2915.4,0.002]
[1768998062603,0.98125517,2917.6,2915.4,3.4320211]
[1768998062808,0.98125517,2917.2,2915.4,0.002]
[1768998063482,0.98125517,2917.2,2915.4,0.98073234]
[1768998063691,0.128,2917.6,2915.8,0.97873234]
[1768998063875,0.128,2917.6,2915.8,4.40832132]
[1768998064076,3.55550842,2917.6,2915.9,0.03429472]
[1768998064285,0.128,2917.6,2915.9,0.03429472]
[1768998064701,0.128,2917.6,2915.8,0.97873234]
[1768998064702,0.98125517,2917.5,2915.8,0.97873234]
[1768998064902,0.98125517,2917.3,2915.4,0.002]
[1768998065104,0.98125517,2917.3,2915.4,0.03630061]
[1768998065319,0.98125517,2917.2,2915.4,0.002]
[1768998065514,0.98125517,2917.0,2915.4,0.002]
[1768998065976,4.40952144,2917.0,2915.4,0.002]
[1768998066179,0.78376595,2916.9,2915.4,0.002]
[1768998066479,1.76502112,2916.9,2915.4,0.002]
[1768998068315,0.78376595,2916.9,2915.4,0.98073234]
[1768998068479,0.03425243,2917.1,2915.4,0.98073234]
[1768998069508,0.03425243,2917.2,2915.6,0.002]
[1768998069897,3.91425243,2917.2,2915.6,0.002]
[1768998070509,7.34220375,2917.2,2915.6,0.002]
[1768998070707,10.73590264,2917.2,2915.6,0.002]
[1768998070908,0.98125517,2917.0,2915.6,0.002]
[1768998071112,1.17171578,2917.1,2915.6,0.002]
[1768998071113,0.98125517,2916.8,2915.6,0.002]
[1768998071321,0.03425243,2916.7,2915.6,0.002]
[1768998073509,1.17171578,2917.1,2915.6,0.98073234]
[1768998073710,0.03425243,2917.1,2915.6,1.01503059]
[1768998074123,0.98125517,2917.0,2915.6,0.002]
[1768998074330,0.98125517,2916.8,2915.6,0.002]
[1768998074484,0.03425243,2916.7,2915.6,0.0036]
[1768998075582,3.42797187,2917.2,2915.6,0.0036]
[1768998075583,0.03425243,2916.9,2915.6,0.0036]
[1768998075805,0.03425243,2916.9,2915.6,0.03789825]
[1768998075988,0.03425243,2917.1,2915.7,0.91471737]
[1768998077994,3.46237171,2917.1,2915.7,0.91471737]
[1768998078193,0.03425243,2917.1,2915.7,0.91471737]
[1768998079086,0.03265243,2917.1,2915.7,0.91471737]
[1768998079705,3.88,2917.0,2915.7,4.34440234]
[1768998079912,0.42231767,2916.9,2915.7,0.91471737]
[1768998080517,0.42231767,2916.9,2915.7,4.34441126]
[1768998080816,0.42231767,2916.9,2915.7,0.91471737]
[1768998081018,0.03105243,2916.9,2915.8,0.91471737]
[1768998081217,3.88,2917.0,2916.0,0.91471737]
[1768998081524,3.88,2917.2,2916.0,0.91471737]
[1768998082020,0.03105243,2917.5,2915.6,0.0052]
[1768998082021,0.95332307,2917.1,2915.6,0.0052]
[1768998082322,0.95332307,2917.1,2915.9,0.002]
[1768998084507,0.03265243,2917.1,2916.0,0.91471737]
[1768998084707,0.03265243,2917.3,2916.0,0.91471737]
[1768998084924,0.95332307,2917.3,2916.0,0.91471737]
[1768998085103,0.95172307,2917.3,2916.0,0.91471737]
[1768998085317,0.95172307,2917.3,2915.9,0.002]
[1768998085511,0.92067064,2917.1,2915.9,0.002]
[1768998085837,0.02945243,2917.0,2915.9,0.002]
[1768998086041,0.92067064,2917.0,2915.9,0.002]
[1768998086208,0.95172307,2916.9,2915.9,0.002]
[1768998087910,0.129,2917.4,2915.9,0.91671737]
[1768998087911,0.001,2917.4,2915.9,0.91671737]
[1768998088218,0.03205243,2917.4,2916.1,0.91471737]
[1768998088408,0.001,2917.4,2916.1,0.91471737]
[1768998088846,0.92067064,2918.3,2916.1,0.91471737]
[1768998089345,0.03185243,2918.2,2916.1,0.91471737]
[1768998089638,0.92067064,2918.1,2916.3,0.91471737]
[1768998089843,0.03105243,2918.0,2916.5,0.91471737]
[1768998090147,0.03105243,2918.0,2916.7,0.91471737]
[1768998090509,0.92067064,2917.9,2915.9,0.91671737]
[1768998090712,6.88511809,2918.0,2916.1,3.429139]
[1768998090713,0.92067064,2917.7,2916.1,3.429139]
[1768998090916,6.85406566,2918.0,2916.1,3.429139]
[1768998090917,0.95172307,2917.6,2916.1,0.91471737]
[1768998091137,0.95172307,2917.6,2915.9,3.43143233]
[1768998091138,0.92067064,2917.6,2915.9,0.002]
[1768998091348,0.92067064,2917.4,2915.9,0.002]
[1768998091551,0.92067064,2917.0,2915.9,0.002]
[1768998091717,0.92067064,2916.8,2915.9,0.002]
[1768998092053,0.03105243,2916.7,2915.9,0.002]
[1768998092734,0.95172307,2916.7,2915.9,0.002]
[1768998092948,3.45961621,2916.7,2915.6,0.0052]
[1768998093248,0.92067064,2916.5,2915.6,0.0052]
[1768998093449,0.0016,2915.9,2915.4,0.002]
[1768998094122,0.0052,2915.5,2915.4,0.002]